[Event "Mitropa Cup Women 2024"]
[Site "Apolda"]
[Date "2024.02.21"]
[Round "7.3"]
[White "Vidic, Teja"]
[Black "Navrotescu, Andreea"]
[Result "0-1"]
[ECO "B27"]
[WhiteElo "2132"]
[BlackElo "2222"]
[Annotator "RC"]
[PlyCount "68"]
[EventDate "2024.02.15"]
[EventType "team-tourn"]
[EventCountry "GER"]
[SourceTitle "playchess.com"]
[Source "ChessBase"]
[SourceQuality "1"]
[WhiteTeam "Slovenia"]
[BlackTeam "France"]
[WhiteTeamCountry "SLO"]
[BlackTeamCountry "FRA"]
[TimeControl "40/5400+30:1800+30"]

1. e4 {[%emt 0:00:03]} c5 {[%emt 0:00:06]} 2. Nf3 {[%emt 0:00:08]} b6 {[%emt 0:00:05]} 3. d4 {[%emt 0:00:50]} cxd4 {[%emt 0:00:08]} 4. Nxd4 {[%emt 0:00:06]} Bb7 {[%emt 0:00:07]} 5. Bd3 {[%emt 0:03:13]} g6 {[%emt 0:00:49]} 6. O-O {[%emt 0:03:57]} Bg7 {[%emt 0:02:30]} 7. Be3 {[%emt 0:01:45]} Nf6 {[%emt 0:03:02]} 8. f3 {[%emt 0:08:48]} O-O {[%emt 0:02:59]} 9. c4 {[%emt 0:00:04]} d6 {[%emt 0:02:12]} 10. Nc3 {[%emt 0:00:31]} Nbd7 {[%emt 0:00:17]} 11. b3 {[%emt 0:01:36]} Rc8 {[%emt 0:01:59]} 12. Rc1 {[%emt 0:00:49]} a6 {[%emt 0:01:15]} 13. Qe1 {[%emt 0:05:11]} Ne5 {[%emt 0:05:08]} 14. Be2 {[%emt 0:01:23]} e6 {[%emt 0:08:40]} 15. h3 {[%emt 0:09:37]} Ned7 {[%emt 0:05:26]} 16. Qf2 {[%emt 0:03:10]} Re8 {[%emt 0:07:06]} 17. Rfe1 {[%emt 0:17:31]} d5 {[%emt 0:13:21]} 18. cxd5 {[%emt 0:00:58]} exd5 {[%emt 0:00:10]} 19. exd5 {[%emt 0:00:29]} Rxc3 {[%emt 0:14:43]} 20. Rxc3 {[%emt 0:00:09]} Nxd5 {[%emt 0:00:07]} 21. Bd2 {[%emt 0:06:55]} Qf6 {[%emt 0:08:56]} 22. Rd3 {[%emt 0:12:21]} Nc5 {[%emt 0:00:08]} 23. Nc2 {[%emt 0:00:24]} Qb2 {[%emt 0:07:48]} 24. Bf1 {[%emt 0:12:23]} Rxe1 {[%emt 0:01:38]} 25. Qxe1 {[%emt 0:01:30]} Qxc2 {[%emt 0:01:38]} 26. Qe8+ {[%emt 0:00:39]} Bf8 {[%emt 0:00:02]} 27. Bh6 {[%emt 0:01:55]} Ne6 {[%emt 0:00:01]} 28. Bxf8 {[%emt 0:00:15]} Nxf8 {[%emt 0:00:03]} 29. Qe5 {[%emt 0:01:24]} Qc5+ {[%emt 0:02:28]} 30. Kh2 {[%emt 0:00:07]} Qf2 {[%emt 0:02:35]} 31. Be2 {[%emt 0:01:44]} Ne6 {[%emt 0:04:14]} 32. Qb8+ {[%emt 0:01:01]} Kg7 {[%emt 0:00:01]} 33. Qe5+ {[%emt 0:00:14]} Kh6 {[%emt 0:00:42]} 34. Rd1 {[%emt 0:05:09]} Ne3 {[%emt 0:01:12]} 0-1

[Event "Mitropa Cup Women 2024"]
[Site "Apolda"]
[Date "2024.02.21"]
[Round "7.4"]
[White "Blanquet, Camille"]
[Black "Mihelic, Vesna"]
[Result "0-1"]
[ECO "D37"]
[WhiteElo "2023"]
[BlackElo "2112"]
[Annotator "NA RC"]
[PlyCount "78"]
[EventDate "2024.02.15"]
[EventType "team-tourn"]
[EventCountry "GER"]
[SourceTitle "playchess.com"]
[Source "ChessBase"]
[SourceQuality "1"]
[WhiteTeam "France"]
[BlackTeam "Slovenia"]
[WhiteTeamCountry "FRA"]
[BlackTeamCountry "SLO"]
[TimeControl "40/5400+30:1800+30"]

1. d4 {[%emt 0:00:03]} d5 {[%emt 0:00:04]} 2. c4 {[%emt 0:00:07]} e6 {[%emt 0:00:06]} 3. Nc3 {[%emt 0:00:07]} Nf6 {[%emt 0:00:08]} 4. Nf3 {[%emt 0:00:20]} Be7 {[%emt 0:00:10]} 5. Bf4 {[%emt 0:00:17]} O-O {[%emt 0:00:14]} 6. e3 {[%emt 0:00:11]} b6 {[%emt 0:00:09]} 7. cxd5 {[%emt 0:00:35]} Nxd5 {[%emt 0:00:10]} 8. Nxd5 {[%emt 1:32:50]} Qxd5 {[%emt 0:00:07]} 9. Be2 {[%emt 0:00:00]} Ba6 {[%emt 0:28:37]} 10. O-O {[%emt 0:00:00]} c5 {[%emt 0:02:38]} 11. Bxa6 {[%emt 0:00:00]} Nxa6 {[%emt 0:00:02]} 12. Qe2 {[%emt 0:00:00]} Qb7 {[%emt 0:02:09]} 13. Rfd1 {[%emt 0:00:00]} Rfd8 {[%emt 0:01:34]} 14. Rac1 {[%emt 0:00:00]} Nb4 {[%emt 0:07:27]} 15. a3 {[%emt 0:00:00]} Nd5 {[%emt 0:00:24]} 16. Be5 {[%emt 0:00:00]} Rac8 {[%emt 0:09:45]} 17. e4 {[%emt 0:00:00]} Nf6 {[%emt 0:01:13]} 18. Bxf6 {[%emt 0:00:00]} Bxf6 {[%emt 0:00:03]} 19. e5 {[%emt 0:00:00]} Be7 {[%emt 0:00:14]} 20. dxc5 {[%emt 0:00:00]} Rxd1+ {[%emt 0:04:38]} 21. Rxd1 {[%emt 0:00:00]} Rxc5 {[%emt 0:01:04]} 22. h3 {[%emt 0:00:00]} h6 {[%emt 0:01:50]} 23. b4 {[%emt 0:00:00]} Rd5 {[%emt 0:02:59]} 24. Rxd5 {[%emt 0:00:00]} Qxd5 {[%emt 0:00:02]} 25. Qa6 {[%emt 0:00:00]} Qd7 {[%emt 0:02:58]} 26. Qc4 {[%emt 0:00:00]} Qa4 {[%emt 0:05:25]} 27. Nd4 {[%emt 0:00:00]} Qxa3 {[%emt 0:02:32]} 28. Nc6 {[%emt 0:00:00]} Bf8 {[%emt 0:04:34]} 29. b5 {[%emt 0:00:00]} Bc5 {[%emt 0:03:41]} 30. Qf4 {[%emt 0:00:00]} Qa1+ {[%emt 0:08:02]} 31. Kh2 {[%emt 0:00:00]} Qf1 {[%emt 0:01:03]} 32. Kg3 {[%emt 0:00:00]} Qxb5 {[%emt 0:01:09]} 33. Nxa7 {[%emt 0:00:00]} Qd7 {[%emt 0:00:14]} 34. Qc4 {[%emt 0:01:09]} Qxa7 {[%emt 0:00:09]} 35. Qb5 {[%emt 0:00:07]} Qe7 {[%emt 0:01:59]} 36. f4 {[%emt 0:00:41]} Qd8 {[%emt 0:00:18]} 37. Qc6 {[%emt 0:00:23]} Qd3+ {[%emt 0:00:37]} 38. Kh2 {[%emt 0:00:31]} Qf5 {[%emt 0:00:19]} 39. Qf3 {[%emt 0:00:24]} g5 {[%emt 0:00:37]} 0-1

[Event "Mitropa Cup Women 2024"]
[Site "Apolda"]
[Date "2024.02.21"]
[Round "7.5"]
[White "Novosadova, Kristyna"]
[Black "Cvitan, Ena"]
[Result "1/2-1/2"]
[ECO "B12"]
[WhiteElo "2188"]
[BlackElo "2242"]
[Annotator "RC"]
[PlyCount "204"]
[EventDate "2024.02.15"]
[EventType "team-tourn"]
[EventCountry "GER"]
[SourceTitle "playchess.com"]
[Source "ChessBase"]
[SourceQuality "1"]
[WhiteTeam "Czech Republic"]
[BlackTeam "Croatia"]
[WhiteTeamCountry "CZE"]
[BlackTeamCountry "CRO"]
[TimeControl "40/5400+30:1800+30"]

1. e4 {[%emt 0:00:02]} c6 {[%emt 0:00:20]} 2. d4 {[%emt 0:00:06]} d5 {[%emt 0:00:04]} 3. e5 {[%emt 0:00:04]} Bf5 {[%emt 0:00:15]} 4. Nc3 {[%emt 0:00:07]} a6 {[%emt 0:00:05]} 5. g4 {[%emt 0:02:21]} Bd7 {[%emt 0:00:15]} 6. Bg2 {[%emt 0:04:55]} e6 {[%emt 0:07:36]} 7. Nce2 {[%emt 0:05:24]} c5 {[%emt 0:02:27]} 8. c3 {[%emt 0:01:13]} h5 {[%emt 0:07:16]} 9. gxh5 {[%emt 0:04:51]} Rxh5 {[%emt 0:02:50]} 10. Ng3 {[%emt 0:05:57]} Rh8 {[%emt 0:01:49]} 11. f4 {[%emt 0:00:29]} cxd4 {[%emt 0:05:09]} 12. cxd4 {[%emt 0:00:05]} Nc6 {[%emt 0:01:00]} 13. Nf3 {[%emt 0:05:37]} Nh6 {[%emt 0:01:22]} 14. f5 {[%emt 0:06:32]} Bb4+ {[%emt 0:05:39]} 15. Kf2 {[%emt 0:06:27]} Ng4+ {[%emt 0:07:00]} 16. Kg1 {[%emt 0:00:08]} Qb6 {[%emt 0:02:08]} 17. fxe6 {[%emt 0:20:11]} Bxe6 {[%emt 0:01:35]} 18. Bf4 {[%emt 0:06:32]} O-O-O {[%emt 0:14:16]} 19. h3 {[%emt 0:05:39]} Nh6 {[%emt 0:01:48]} 20. Rc1 {[%emt 0:00:49]} Kb8 {[%emt 0:00:39]} 21. a3 {[%emt 0:00:56]} Be7 {[%emt 0:00:31]} 22. b4 {[%emt 0:00:40]} g5 {[%emt 0:02:39]} 23. Nxg5 {[%emt 0:05:34]} Bxg5 {[%emt 0:04:10]} 24. Bxg5 {[%emt 0:00:04]} Rdg8 {[%emt 0:00:24]} 25. Bf4 {[%emt 0:04:37]} Ka8 {[%emt 0:03:09]} 26. Rc5 {[%emt 0:00:22]} Nf5 {[%emt 0:02:06]} 27. Nxf5 {[%emt 0:00:09]} Bxf5 {[%emt 0:00:27]} 28. Kf2 {[%emt 0:02:08]} Ne7 {[%emt 0:03:59]} 29. Bf3 {[%emt 0:01:21]} Bxh3 {[%emt 0:03:02]} 30. b5 {[%emt 0:01:45]} Rh4 {[%emt 0:05:17]} 31. Qd2 {[%emt 0:04:52]} a5 {[%emt 0:01:36]} 32. Bg5 {[%emt 0:00:30]} Rxg5 {[%emt 0:01:51]} 33. Qxg5 {[%emt 0:00:07]} Rxd4 {[%emt 0:01:30]} 34. Qxe7 {[%emt 0:01:20]} Rc4 {[%emt 0:00:32]} 35. Qd6 {[%emt 0:03:10]} Qxc5+ {[%emt 0:00:12]} 36. Qxc5 {[%emt 0:00:04]} Rxc5 {[%emt 0:00:04]} 37. Rxh3 {[%emt 0:00:13]} Rxb5 {[%emt 0:00:28]} 38. Rh8+ {[%emt 0:00:54]} Ka7 {[%emt 0:00:06]} 39. Re8 {[%emt 0:01:42]} d4 {[%emt 0:02:42]} 40. Ke2 {[%emt 0:00:43]} Rb2+ {[%emt 0:01:51]} 41. Kd1 {[%emt 0:13:00]} Rb3 {[%emt 0:00:17]} 42. Bd5 {[%emt 0:00:23]} Rxa3 {[%emt 0:00:09]} 43. Bxf7 {[%emt 0:00:19]} Re3 {[%emt 0:00:35]} 44. e6 {[%emt 0:11:37]} a4 {[%emt 0:00:46]} 45. Rd8 {[%emt 0:00:39]} a3 {[%emt 0:00:37]} 46. Rxd4 {[%emt 0:00:20]} b5 {[%emt 0:03:24]} 47. Rd7+ {[%emt 0:04:55]} Kb6 {[%emt 0:00:09]} 48. e7 {[%emt 0:00:20]} b4 {[%emt 0:01:06]} 49. Kc2 {[%emt 0:02:46]} Re2+ {[%emt 0:00:50]} 50. Kd1 {[%emt 0:01:13]} Re3 {[%emt 0:00:02]} 51. Kd2 {[%emt 0:00:21]} Re5 {[%emt 0:00:16]} 52. Bb3 {[%emt 0:01:15]} a2 {[%emt 0:01:39]} 53. Bxa2 {[%emt 0:00:30]} Kc6 {[%emt 0:00:07]} 54. Rd4 {[%emt 0:00:23]} Rxe7 {[%emt 0:00:22]} 55. Rxb4 {[%emt 0:00:07]} Rh7 {[%emt 0:01:04]} 56. Be6 {[%emt 0:01:00]} Kd6 {[%emt 0:00:26]} 57. Bf5 {[%emt 0:00:18]} Rh5 {[%emt 0:00:17]} 58. Bg4 {[%emt 0:00:19]} Ra5 {[%emt 0:01:19]} 59. Ke3 {[%emt 0:00:16]} Ke5 {[%emt 0:01:23]} 60. Re4+ {[%emt 0:00:14]} Kd6 {[%emt 0:00:29]} 61. Kf4 {[%emt 0:00:32]} Rc5 {[%emt 0:00:27]} 62. Re6+ {[%emt 0:00:22]} Kd5 {[%emt 0:01:00]} 63. Re8 {[%emt 0:01:06]} Rc4+ {[%emt 0:01:08]} 64. Kf5 {[%emt 0:00:02]} Kd4 {[%emt 0:00:25]} 65. Be2 {[%emt 0:00:33]} Rb4 {[%emt 0:00:21]} 66. Re4+ {[%emt 0:00:56]} Kc5 {[%emt 0:00:26]} 67. Re3 {[%emt 0:00:45]} Rb8 {[%emt 0:01:23]} 68. Rc3+ {[%emt 0:00:16]} Kd5 {[%emt 0:00:58]} 69. Kf4 {[%emt 0:00:25]} Rb4+ {[%emt 0:01:07]} 70. Kf5 {[%emt 0:00:06]} Rb8 {[%emt 0:00:32]} 71. Rd3+ {[%emt 0:00:40]} Kc5 {[%emt 0:00:09]} 72. Bh5 {[%emt 0:00:13]} Rb1 {[%emt 0:01:32]} 73. Rd2 {[%emt 0:00:08]} Rb7 {[%emt 0:00:51]} 74. Bg4 {[%emt 0:00:44]} Rb4 {[%emt 0:00:28]} 75. Bf3 {[%emt 0:00:45]} Rd4 {[%emt 0:00:19]} 76. Ra2 {[%emt 0:00:23]} Rd8 {[%emt 0:00:25]} 77. Rc2+ {[%emt 0:00:05]} Kb6 {[%emt 0:01:20]} 78. Ke5 {[%emt 0:00:34]} Re8+ {[%emt 0:00:16]} 79. Kd4 {[%emt 0:00:40]} Rh8 {[%emt 0:00:35]} 80. Rb2+ {[%emt 0:00:20]} Kc7 {[%emt 0:01:13]} 81. Kc5 {[%emt 0:00:08]} Kd7 {[%emt 0:01:27]} 82. Kd5 {[%emt 0:00:46]} Kc7 {[%emt 0:01:18]} 83. Bg4 {[%emt 0:01:12]} Rd8+ {[%emt 0:00:45]} 84. Kc5 {[%emt 0:00:15]} Ra8 {[%emt 0:02:31]} 85. Rb5 {[%emt 0:00:57]} Ra1 {[%emt 0:01:23]} 86. Bf3 {[%emt 0:00:19]} Rc1+ {[%emt 0:00:47]} 87. Kd5 {[%emt 0:00:17]} Rg1 {[%emt 0:01:00]} 88. Kd4 {[%emt 0:00:53]} Ra1 {[%emt 0:00:47]} 89. Ke5 {[%emt 0:00:19]} Ra7 {[%emt 0:02:13]} 90. Bd5 {[%emt 0:00:34]} Kd7 {[%emt 0:00:53]} 91. Rb1 {[%emt 0:00:44]} Kc7 {[%emt 0:00:23]} 92. Rh1 {[%emt 0:00:40]} Kb6 {[%emt 0:00:37]} 93. Kd6 {[%emt 0:00:13]} Ra5 {[%emt 0:03:46]} 94. Rh8 {[%emt 0:00:05]} Kb5 {[%emt 0:00:42]} 95. Rb8+ {[%emt 0:00:13]} Ka4 {[%emt 0:00:20]} 96. Kc6 {[%emt 0:00:50]} Ka3 {[%emt 0:00:48]} 97. Rb1 {[%emt 0:00:25]} Ra4 {[%emt 0:02:13]} 98. Kc5 {[%emt 0:01:16]} Rh4 {[%emt 0:01:11]} 99. Rb3+ {[%emt 0:00:41]} Ka4 {[%emt 0:00:19]} 100. Rb1 {[%emt 0:00:31]} Ka3 {[%emt 0:00:09]} 101. Bf7 {[%emt 0:00:28]} Rf4 {[%emt 0:00:58]} 102. Bd5 {[%emt 0:00:38]} Rh4 {[%emt 0:16:39]} 1/2-1/2

[Event "Mitropa Cup Women 2024"]
[Site "Apolda"]
[Date "2024.02.21"]
[Round "7.6"]
[White "Berke, Ana"]
[Black "Koubova, Anna Marie"]
[Result "0-1"]
[ECO "C07"]
[WhiteElo "2092"]
[BlackElo "2100"]
[Annotator "RC"]
[PlyCount "74"]
[EventDate "2024.02.15"]
[EventType "team-tourn"]
[EventCountry "GER"]
[SourceTitle "playchess.com"]
[Source "ChessBase"]
[SourceQuality "1"]
[WhiteTeam "Croatia"]
[BlackTeam "Czech Republic"]
[WhiteTeamCountry "CRO"]
[BlackTeamCountry "CZE"]
[TimeControl "40/5400+30:1800+30"]

1. e4 {[%emt 0:00:06]} e6 {[%emt 0:00:11]} 2. d4 {[%emt 0:00:17]} d5 {[%emt 0:00:10]} 3. Nd2 {[%emt 0:00:06]} c5 {[%emt 0:00:16]} 4. dxc5 {[%emt 0:01:04]} Bxc5 {[%emt 0:01:00]} 5. Bd3 {[%emt 0:00:26]} Nf6 {[%emt 0:00:55]} 6. Qe2 {[%emt 0:02:09]} Nc6 {[%emt 0:01:13]} 7. Ngf3 {[%emt 0:00:24]} Nb4 {[%emt 0:04:20]} 8. e5 {[%emt 0:01:13]} Nxd3+ {[%emt 0:02:45]} 9. cxd3 {[%emt 0:00:59]} Nd7 {[%emt 0:00:21]} 10. h4 {[%emt 0:02:27]} b6 {[%emt 0:04:36]} 11. h5 {[%emt 0:09:37]} h6 {[%emt 0:02:59]} 12. Nb3 {[%emt 0:02:48]} Ba6 {[%emt 0:02:21]} 13. Rh3 {[%emt 0:02:53]} O-O {[%emt 0:10:58]} 14. Nfd4 {[%emt 0:06:28]} Bb4+ {[%emt 0:03:53]} 15. Kf1 {[%emt 0:01:02]} Rc8 {[%emt 0:04:51]} 16. Bf4 {[%emt 0:07:02]} Qe7 {[%emt 0:05:42]} 17. Qg4 {[%emt 0:16:08]} Kh8 {[%emt 0:08:18]} 18. a3 {[%emt 0:03:00]} Bc5 {[%emt 0:11:50]} 19. Re1 {[%emt 0:04:41]} Bxd4 {[%emt 0:01:05]} 20. Nxd4 {[%emt 0:00:57]} Nc5 {[%emt 0:00:11]} 21. Rg3 {[%emt 0:03:05]} Rg8 {[%emt 0:03:45]} 22. Rd1 {[%emt 0:08:02]} Na4 {[%emt 0:10:06]} 23. b4 {[%emt 0:03:28]} Nb2 {[%emt 0:04:17]} 24. Rd2 {[%emt 0:06:30]} Rc1+ {[%emt 0:00:16]} 25. Ke2 {[%emt 0:00:48]} Nxd3 {[%emt 0:03:57]} 26. Rgxd3 {[%emt 0:00:54]} Bc4 {[%emt 0:01:29]} 27. Qf3 {[%emt 0:00:58]} Qh4 {[%emt 0:03:47]} 28. Rc2 {[%emt 0:03:54]} Ra1 {[%emt 0:03:02]} 29. Rxc4 {[%emt 0:03:23]} dxc4 {[%emt 0:00:07]} 30. Rd1 {[%emt 0:00:31]} Rxd1 {[%emt 0:01:02]} 31. Kxd1 {[%emt 0:00:17]} Rd8 {[%emt 0:01:32]} 32. Qe3 {[%emt 0:00:57]} Qh1+ {[%emt 0:00:29]} 33. Ke2 {[%emt 0:03:43]} Qa1 {[%emt 0:00:42]} 34. Bxh6 {[%emt 0:02:30]} Rxd4 {[%emt 0:02:06]} 35. Bxg7+ {[%emt 0:00:39]} Kxg7 {[%emt 0:00:30]} 36. Qg5+ {[%emt 0:03:02]} Kh7 {[%emt 0:00:43]} 37. Kf3 {[%emt 0:00:13]} Qc3+ {[%emt 0:00:33]} 0-1

[Event "Mitropa Cup Women 2024"]
[Site "Apolda"]
[Date "2024.02.21"]
[Round "7.7"]
[White "Lhotska, Anna"]
[Black "Vujnovic, Patricija"]
[Result "0-1"]
[ECO "A09"]
[WhiteElo "2053"]
[BlackElo "2104"]
[Annotator "RC"]
[PlyCount "74"]
[EventDate "2024.02.15"]
[EventType "team-tourn"]
[EventCountry "GER"]
[SourceTitle "playchess.com"]
[Source "ChessBase"]
[SourceQuality "1"]
[WhiteTeam "Czech Republic"]
[BlackTeam "Croatia"]
[WhiteTeamCountry "CZE"]
[BlackTeamCountry "CRO"]
[TimeControl "40/5400+30:1800+30"]

1. Nf3 {[%emt 0:00:28]} d5 {[%emt 0:00:13]} 2. g3 {[%emt 0:00:08]} Nc6 {[%emt 0:01:00]} 3. c4 {[%emt 0:00:19]} d4 {[%emt 0:00:45]} 4. d3 {[%emt 0:00:14]} e5 {[%emt 0:00:26]} 5. Bg2 {[%emt 0:01:00]} Nf6 {[%emt 0:05:39]} 6. O-O {[%emt 0:00:32]} Be7 {[%emt 0:01:21]} 7. e3 {[%emt 0:02:46]} O-O {[%emt 0:00:48]} 8. exd4 {[%emt 0:02:07]} exd4 {[%emt 0:00:02]} 9. Na3 {[%emt 0:00:12]} Bf5 {[%emt 0:08:24]} 10. Nc2 {[%emt 0:03:30]} a5 {[%emt 0:00:33]} 11. b3 {[%emt 0:06:52]} a4 {[%emt 0:03:01]} 12. Bb2 {[%emt 0:01:13]} Bc5 {[%emt 0:01:55]} 13. Rb1 {[%emt 0:15:27]} axb3 {[%emt 0:05:51]} 14. axb3 {[%emt 0:00:13]} Ra2 {[%emt 0:01:38]} 15. b4 {[%emt 0:05:48]} Bxb4 {[%emt 0:00:43]} 16. Ncxd4 {[%emt 0:04:52]} Nxd4 {[%emt 0:08:48]} 17. Nxd4 {[%emt 0:02:23]} Rxb2 {[%emt 0:04:58]} 18. Nxf5 {[%emt 0:08:22]} Rd2 {[%emt 0:04:10]} 19. Qc1 {[%emt 0:00:41]} Ba5 {[%emt 0:01:02]} 20. Rb5 {[%emt 0:04:56]} c6 {[%emt 0:01:00]} 21. Rxb7 {[%emt 0:00:29]} Qxd3 {[%emt 0:02:44]} 22. Ne7+ {[%emt 0:00:25]} Kh8 {[%emt 0:00:01]} 23. Nxc6 {[%emt 0:00:14]} Bc3 {[%emt 0:10:15]} 24. Rb3 {[%emt 0:01:44]} Rc2 {[%emt 0:02:51]} 25. Qf4 {[%emt 0:06:07]} Qe2 {[%emt 0:13:54]} 26. Bf3 {[%emt 0:08:32]} Qe6 {[%emt 0:01:36]} 27. Rb8 {[%emt 0:00:59]} Re8 {[%emt 0:02:56]} 28. Rxe8+ {[%emt 0:05:12]} Qxe8 {[%emt 0:00:02]} 29. Rd1 {[%emt 0:00:24]} Bd2 {[%emt 0:03:43]} 30. Qd6 {[%emt 0:08:11]} Be1 {[%emt 0:00:16]} 31. Qc7 {[%emt 0:00:50]} Bxf2+ {[%emt 0:00:39]} 32. Kh1 {[%emt 0:00:12]} Qe3 {[%emt 0:09:26]} 33. Ne5 {[%emt 0:02:59]} h5 {[%emt 0:00:11]} 34. Nxf7+ {[%emt 0:03:52]} Kh7 {[%emt 0:00:07]} 35. Ne5 {[%emt 0:03:13]} Bxg3 {[%emt 0:00:14]} 36. hxg3 {[%emt 0:00:35]} Qf2 {[%emt 0:00:16]} 37. Be4+ {[%emt 0:01:25]} Nxe4 {[%emt 0:00:39]} 0-1

[Event "Mitropa Cup Women 2024"]
[Site "Apolda"]
[Date "2024.02.21"]
[Round "7.8"]
[White "Mihaljevic, Eva"]
[Black "Fizerova, Lucie"]
[Result "1-0"]
[ECO "B62"]
[WhiteElo "2043"]
[BlackElo "1794"]
[Annotator "NA RC"]
[PlyCount "45"]
[EventDate "2024.02.15"]
[EventType "team-tourn"]
[EventCountry "GER"]
[SourceTitle "playchess.com"]
[Source "ChessBase"]
[SourceQuality "1"]
[WhiteTeam "Croatia"]
[BlackTeam "Czech Republic"]
[WhiteTeamCountry "CRO"]
[BlackTeamCountry "CZE"]
[TimeControl "40/5400+30:1800+30"]

1. e4 {[%emt 0:00:01]} c5 {[%emt 0:00:07]} 2. Nf3 {[%emt 0:00:06]} d6 {[%emt 0:00:05]} 3. d4 {[%emt 0:00:05]} cxd4 {[%emt 0:00:06]} 4. Nxd4 {[%emt 0:00:06]} Nf6 {[%emt 0:00:07]} 5. Nc3 {[%emt 0:00:06]} Nc6 {[%emt 0:00:07]} 6. Bg5 {[%emt 0:00:18]} e6 {[%emt 0:00:34]} 7. Qd3 {[%emt 0:00:35]} a6 {[%emt 0:01:50]} 8. Nxc6 {[%emt 0:00:47]} bxc6 {[%emt 0:00:53]} 9. O-O-O {[%emt 0:00:16]} Be7 {[%emt 0:04:04]} 10. Qg3 {[%emt 0:07:52]} e5 {[%emt 0:07:54]} 11. Be2 {[%emt 0:01:43]} Be6 {[%emt 0:04:19]} 12. f4 {[%emt 0:12:18]} Qc7 {[%emt 0:06:21]} 13. fxe5 {[%emt 0:10:30]} dxe5 {[%emt 0:01:01]} 14. Rhf1 {[%emt 0:00:22]} Rb8 {[%emt 0:04:44]} 15. Bxf6 {[%emt 0:11:20]} Bxf6 {[%emt 0:02:17]} 16. Rxf6 {[%emt 0:09:27]} gxf6 {[%emt 0:04:29]} 17. Qg7 {[%emt 0:00:10]} Rf8 {[%emt 0:13:30]} 18. Qxf6 {[%emt 0:01:37]} Rg8 {[%emt 0:05:50]} 19. Bh5 {[%emt 0:02:48]} Bc4 {[%emt 0:10:12]} 20. b3 {[%emt 0:06:54]} Rxg2 {[%emt 0:14:11]} 21. bxc4 {[%emt 0:06:33]} Kf8 {[%emt 0:09:32]} 22. Bxf7 {[%emt 0:07:20]} Qb7 {[%emt 0:04:09]} 23. Bd5+ {[%emt 0:02:56]} 1-0

[Event "Mitropa Cup Women 2024"]
[Site "Apolda"]
[Date "2024.02.21"]
[Round "7.9"]
[White "Brunello, Marina"]
[Black "Walter, Ema"]
[Result "1-0"]
[ECO "C54"]
[WhiteElo "2345"]
[BlackElo "2124"]
[Annotator "TA"]
[PlyCount "97"]
[EventDate "2024.02.15"]
[EventType "team-tourn"]
[EventCountry "GER"]
[SourceTitle "playchess.com"]
[Source "ChessBase"]
[SourceQuality "1"]
[WhiteTeam "Italy"]
[BlackTeam "Slovakia"]
[WhiteTeamCountry "ITA"]
[BlackTeamCountry "SVK"]
[TimeControl "40/5400+30:1800+30"]

{[%evp 10,97,17,4,13,0,0,0,0,-17,-1,-12,22,-1,-9,-10,-7,-9,-7,-27,-13,-29,-13,-32,-30,-22,-20,-28,-25,-47,-41,-38,-29,-37,-31,-27,-35,-38,0,-11,0,0,0,0,0,-22,0,0,0,0,0,0,14,8,84,81,78,78,78,69,73,0,65,53,168,156,153,150,267,263,265,272,316,315,328,320,322,303,409,389,464,457,461,464,457,459,456,450,456,444]} 1. e4 {[%emt 0:00:05]} e5 {[%emt 0:00:09]} 2. Nf3 {[%emt 0:00:16]} Nc6 {[%emt 0:00:06]} 3. Bc4 {[%emt 0:00:02]} Bc5 {[%emt 0:00:06]} 4. d3 {[%emt 0:00:06]} Nf6 {[%emt 0:00:06]} 5. c3 {[%emt 0:00:05]} d6 {[%emt 0:00:08]} 6. Bb3 {[%emt 0:00:16]} a5 {[%emt 0:00:11]} 7. a4 {[%emt 0:01:54]} h6 {[%emt 0:00:10]} 8. O-O {[%emt 0:01:36]} O-O {[%emt 0:00:12] Die Stellung ist ausgeglichen.} 9. Be3 {[%emt 0:00:38]} Bxe3 {[%emt 0:09:21]} 10. fxe3 {[%emt 0:00:05]} Be6 {[%emt 0:00:16]} 11. Bc2 {[%emt 0:06:29]} Ne7 {[%emt 0:10:21]} 12. Nbd2 {[%emt 0:13:20]} Ng6 {[%emt 0:02:33]} 13. d4 {[%emt 0:01:33]} c6 {[%emt 0:00:48]} 14. Qe2 {[%emt 0:01:27]} Qc7 {[%emt 0:04:33]} 15. Rfb1 {[%emt 0:06:18]} Nd7 {[%emt 0:19:20]} 16. Nf1 {[%emt 0:03:54]} d5 {[%emt 0:04:38]} 17. exd5 {[%emt 0:11:31]} cxd5 {[%emt 0:00:36]} 18. Bxg6 {[%emt 0:00:39]} fxg6 {[%emt 0:00:12]} 19. Nxe5 {[%emt 0:00:14]} Nxe5 {[%emt 0:00:12]} 20. dxe5 {[%emt 0:00:04] Weiss ist schwach auf den weissen Feldern} Qxe5 {[%emt 0:00:12]} 21. Rd1 {[%emt 0:00:31][%cal Bb1d1,Bd1d4,Bd4f4][%mdl 32]} Rf6 {[%emt 0:19:10]} 22. Rd4 {[%emt 0:01:38]} Raf8 {[%emt 0:04:14]} 23. Ng3 {[%emt 0:03:35]} h5 {[%emt 0:01:50][%cal Bh6h5,Bh5h4,Bh4h3][%mdl 32]} 24. Rf1 {[%emt 0:04:31]} Bg4 {[%emt 0:05:43]} (24... Re8 {vereinfacht} 25. Rxf6 gxf6 26. Kf2 Kg7) 25. Qd2 {[%emt 0:01:27]} Be6 {[%emt 0:06:23]} 26. Re1 {[%emt 0:05:56]} Kh7 {[%emt 0:03:32]} 27. Rf4 {[%emt 0:07:11]} Qg5 {[%emt 0:02:04]} (27... Bd7 {vereinfacht} 28. Qd4 Re8 29. Qxe5 Rxe5 30. Rxf6 gxf6 31. Kf2 Re6) 28. Ref1 {[%emt 0:03:12]} h4 {[%emt 0:04:28]} 29. Ne2 {[%emt 0:00:28]} h3 {[%emt 0:00:36][%csl Gh3][%cal Rg5g2]} 30. g3 {[%emt 0:00:54]} Qe5 {[%emt 0:00:52]} 31. Qd4 {[%emt 0:01:19]} Qe4 {[%emt 0:02:24]} 32. Qxe4 $16 {[%emt 0:04:52]} (32. Rh4+ {führt zum Matt.} Kg8) 32... dxe4 {[%emt 0:00:01]} 33. Rh4+ {[%emt 0:00:22]} Kg8 {[%emt 0:00:06]} 34. Rxf6 {[%emt 0:00:10]} Rxf6 {[%emt 0:00:17][%mdl 4096] Endspiel. KRB-KRN} 35. Rf4 {[%emt 0:09:01]} (35. Rxe4 $16 g5 36. g4) 35... Bf5 {[%emt 0:01:21]} (35... Bd7 $11) 36. Nd4 {[%emt 0:00:48]} Rb6 {[%emt 0:00:25] [#]} (36... Bd7 37. b3 $11) ({Vorzuziehen ist} 36... Rf7 $14) 37. b3 $1 $18 {[%emt 0:00:22]} Be6 {[%emt 0:00:51] [#]} 38. c4 $1 {[%emt 0:00:06][%cal Oc4c5] Droht stark c5!} g5 {[%emt 0:00:29]} (38... Bd7 $16 {war einen Versuch wert.} 39. Rxe4 Bf5) 39. Rxe4 {[%emt 0:00:39]} Bf7 {[%emt 0:00:28]} 40. Kf2 {[%emt 0:03:20]} Bg6 {[%emt 0:00:34]} 41. Re5 {[%emt 0:10:04][%csl LRa5,LRg5]} Rf6+ {[%emt 0:05:31]} 42. Ke2 {[%emt 0:01:26]} b6 {[%emt 0:05:33]} 43. Rxg5 {[%emt 0:01:46]} Kf7 {[%emt 0:00:30]} 44. Re5 {[%emt 0:00:42]} Rd6 {[%emt 0:02:18]} 45. g4 {[%emt 0:02:46][%cal Bg3g4,Bg4g5][%mdl 32] Weiß steht klar auf Gewinn.} Kf6 {[%emt 0:01:01]} 46. Rb5 {[%emt 0:00:13]} Be8 {[%emt 0:00:51]} 47. g5+ {[%emt 0:00:04]} Kg6 {[%emt 0:01:14]} 48. Re5 {[%emt 0:00:05]} Bd7 {[%emt 0:00:09]} 49. Kf3 {[%emt 0:00:23] Gewichteter Fehlerwert: Weiß=0.08 (makellos) /Schwarz=0.21 (präzise) .  Fehler:       	Weiß=1     	Schwarz=4     Ungenau:       	---       	Schwarz=3     OK:         	Weiß=15    	Schwarz=12    Bester:       	Weiß=2     	---        Stark:        	Weiß=1     	---} 1-0